[Event "*** Biggest EVER Titled Tuesday"]
[Site "Chess.com"]
[Date "2018.04.17"]
[Round "8"]
[White "severomorskij"]
[Black "OparinGrigoriy"]
[Result "0-1"]
[WhiteElo "2691"]
[BlackElo "2865"]
[TimeControl "180+2"]
[EndTime "14:51:59 PDT"]
[Termination "OparinGrigoriy won on time"]

1. d4 {[%clk 0:03:01.9]} 1... Nf6 {[%clk 0:03:00.6]} 2. c4 {[%clk 0:03:02.9]}
2... e6 {[%clk 0:03:01.9]} 3. Nc3 {[%clk 0:03:04]} 3... Bb4 {[%clk 0:03:02.1]}
4. Nf3 {[%clk 0:03:05.5]} 4... O-O {[%clk 0:03:01.7]} 5. Bg5 {[%clk 0:03:06]}
5... h6 {[%clk 0:03:01.5]} 6. Bh4 {[%clk 0:03:06]} 6... d6 {[%clk 0:03:02.7]} 7.
e4 {[%clk 0:03:04.4]} 7... e5 {[%clk 0:02:59.7]} 8. Bd3 {[%clk 0:02:46.7]} 8...
Bg4 {[%clk 0:02:58.4]} 9. a3 {[%clk 0:02:35.2]} 9... Bxc3+ {[%clk 0:02:31.7]}
10. bxc3 {[%clk 0:02:35.5]} 10... Nbd7 {[%clk 0:02:32.5]} 11. O-O {[%clk
0:02:23.6]} 11... Re8 {[%clk 0:02:32.6]} 12. h3 {[%clk 0:02:21.3]} 12... Bh5
{[%clk 0:02:32.3]} 13. g4 {[%clk 0:02:19.2]} 13... Bg6 {[%clk 0:02:32.9]} 14.
Nd2 {[%clk 0:02:19.1]} 14... c5 {[%clk 0:02:29.2]} 15. f4 {[%clk 0:02:00.3]}
15... exf4 {[%clk 0:02:21.1]} 16. Rxf4 {[%clk 0:01:59.2]} 16... cxd4 {[%clk
0:02:22.7]} 17. cxd4 {[%clk 0:01:59.1]} 17... Qb6 {[%clk 0:02:16.4]} 18. Bf2
{[%clk 0:01:35.7]} 18... Qc6 {[%clk 0:02:04.2]} 19. Qc2 {[%clk 0:01:18.2]} 19...
Rac8 {[%clk 0:02:00.4]} 20. Rc1 {[%clk 0:01:02.4]} 20... Re7 {[%clk 0:01:53.5]}
21. h4 {[%clk 0:00:37.7]} 21... Rce8 {[%clk 0:01:54.4]} 22. g5 {[%clk
0:00:22.3]} 22... hxg5 {[%clk 0:00:43.3]} 23. hxg5 {[%clk 0:00:23.1]} 23... Nh7
{[%clk 0:00:44.9]} 24. Rg4 {[%clk 0:00:23.8]} 24... Ndf8 {[%clk 0:00:45.6]} 25.
Rf1 {[%clk 0:00:13.7]} 25... Qc8 {[%clk 0:00:46]} 26. Rg3 {[%clk 0:00:13]} 26...
b5 {[%clk 0:00:30.8]} 27. cxb5 {[%clk 0:00:10.8]} 27... Qxc2 {[%clk 0:00:32.7]}
28. Bxc2 {[%clk 0:00:11.6]} 28... d5 {[%clk 0:00:34.6]} 29. Re1 {[%clk
0:00:05.8]} 29... dxe4 {[%clk 0:00:27.3]} 30. Bxe4 {[%clk 0:00:06.7]} 30... Bxe4
{[%clk 0:00:26.2]} 31. Rge3 {[%clk 0:00:03]} 31... f5 {[%clk 0:00:17.7]} 0-1

[Event "*** Biggest EVER Titled Tuesday"]
[Site "Chess.com"]
[Date "2018.04.17"]
[Round "8"]
[White "Th3ChessViking"]
[Black "hblanco"]
[Result "1-0"]
[WhiteElo "2389"]
[BlackElo "2305"]
[TimeControl "180+2"]
[EndTime "14:52:09 PDT"]
[Termination "Th3ChessViking won by resignation"]

1. c4 {[%clk 0:03:01.9]} 1... g6 {[%clk 0:02:59.7]} 2. g3 {[%clk 0:03:02.3]}
2... Bg7 {[%clk 0:03:01]} 3. Bg2 {[%clk 0:03:04.2]} 3... c5 {[%clk 0:03:01.5]}
4. Nc3 {[%clk 0:03:04.9]} 4... Nc6 {[%clk 0:03:02.1]} 5. d3 {[%clk 0:03:06.3]}
5... d6 {[%clk 0:02:50.9]} 6. h4 {[%clk 0:03:04.4]} 6... h5 {[%clk 0:02:41.5]}
7. Nh3 {[%clk 0:03:05.4]} 7... Bg4 {[%clk 0:02:14.4]} 8. Nf4 {[%clk 0:03:04.7]}
8... Nh6 {[%clk 0:02:00.7]} 9. Qd2 {[%clk 0:03:00]} 9... O-O {[%clk 0:01:59.4]}
10. b3 {[%clk 0:03:00.1]} 10... e5 {[%clk 0:01:55.9]} 11. Nfd5 {[%clk
0:02:57.7]} 11... Nd4 {[%clk 0:01:32.4]} 12. Bb2 {[%clk 0:02:42.4]} 12... Be6
{[%clk 0:01:20.1]} 13. e3 {[%clk 0:02:33.8]} 13... Bxd5 {[%clk 0:01:19.8]} 14.
Bxd5 {[%clk 0:02:29.5]} 14... Ne6 {[%clk 0:01:14.1]} 15. Bxb7 {[%clk 0:02:27.8]}
15... Rb8 {[%clk 0:01:12.5]} 16. Bd5 {[%clk 0:02:28.4]} 16... Qf6 {[%clk
0:01:04.1]} 17. Ne4 {[%clk 0:02:25.9]} 17... Qe7 {[%clk 0:01:03.7]} 18. Nc3
{[%clk 0:02:14.1]} 18... Kh7 {[%clk 0:01:03.9]} 19. O-O {[%clk 0:02:10]} 19...
Ng4 {[%clk 0:01:04.7]} 20. Bg2 {[%clk 0:01:56.8]} 20... Bh6 {[%clk 0:01:05.4]}
21. Nd5 {[%clk 0:01:54.3]} 21... Qd8 {[%clk 0:01:04.9]} 22. f3 {[%clk 0:01:49]}
22... Nf6 {[%clk 0:00:48.2]} 23. Nxf6+ {[%clk 0:01:46.1]} 23... Qxf6 {[%clk
0:00:50.1]} 24. f4 {[%clk 0:01:48]} 24... Qg7 {[%clk 0:00:42.2]} 25. Kh2 {[%clk
0:01:30.1]} 25... Rbd8 {[%clk 0:00:41.1]} 26. f5 {[%clk 0:01:19.3]} 26... gxf5
{[%clk 0:00:41.8]} 27. Rxf5 {[%clk 0:01:21.2]} 27... Qg4 {[%clk 0:00:38.9]} 28.
Be4 {[%clk 0:01:15.6]} 28... Kh8 {[%clk 0:00:35.8]} 29. Raf1 {[%clk 0:01:11.3]}
29... Rd7 {[%clk 0:00:33]} 30. Bg2 {[%clk 0:01:00.8]} 30... Nd4 {[%clk 0:00:31]}
31. Rf6 {[%clk 0:00:46.3]} 31... Qg7 {[%clk 0:00:27.5]} 32. Bc1 {[%clk
0:00:29.7]} 32... Ne6 {[%clk 0:00:22]} 33. Qe2 {[%clk 0:00:28.4]} 33... Qg4
{[%clk 0:00:18]} 34. Rxh6+ {[%clk 0:00:26.6]} 1-0

[Event "*** Biggest EVER Titled Tuesday"]
[Site "Chess.com"]
[Date "2018.04.17"]
[Round "8"]
[White "mukhin1"]
[Black "grzechu96"]
[Result "1-0"]
[WhiteElo "2903"]
[BlackElo "2466"]
[TimeControl "180+2"]
[EndTime "14:52:13 PDT"]
[Termination "mukhin1 won on time"]

1. d4 {[%clk 0:03:01.9]} 1... d5 {[%clk 0:03:00.3]} 2. c4 {[%clk 0:02:57.6]}
2... c6 {[%clk 0:03:01.2]} 3. cxd5 {[%clk 0:02:57.4]} 3... cxd5 {[%clk
0:03:01.4]} 4. Bg5 {[%clk 0:02:55.1]} 4... f6 {[%clk 0:03:01.1]} 5. Bd2 {[%clk
0:02:54.9]} 5... Nc6 {[%clk 0:03:02.1]} 6. Nc3 {[%clk 0:02:55.7]} 6... Nxd4
{[%clk 0:03:03.1]} 7. e3 {[%clk 0:02:56.6]} 7... Nc6 {[%clk 0:03:02.9]} 8. Qh5+
{[%clk 0:02:56.6]} 8... g6 {[%clk 0:03:02.9]} 9. Qxd5 {[%clk 0:02:58.1]} 9...
Qxd5 {[%clk 0:02:20]} 10. Nxd5 {[%clk 0:03:00]} 10... Kf7 {[%clk 0:02:21.5]} 11.
Nh3 {[%clk 0:02:54.7]} 11... e6 {[%clk 0:02:18.1]} 12. Nc3 {[%clk 0:02:53.1]}
12... Bd7 {[%clk 0:02:13.5]} 13. Rc1 {[%clk 0:02:52.3]} 13... Rc8 {[%clk
0:02:14.3]} 14. Ne4 {[%clk 0:02:50.2]} 14... h6 {[%clk 0:02:03.6]} 15. Nf4
{[%clk 0:02:48.6]} 15... f5 {[%clk 0:02:01.7]} 16. Bc3 {[%clk 0:02:42.1]} 16...
Nb4 {[%clk 0:01:52.7]} 17. Rd1 {[%clk 0:02:19.5]} 17... Ba4 {[%clk 0:01:16.2]}
18. Nd6+ {[%clk 0:01:53.5]} 18... Bxd6 {[%clk 0:01:07.6]} 19. Rxd6 {[%clk
0:01:55.4]} 19... Nc2+ {[%clk 0:00:56.7]} 20. Kd2 {[%clk 0:01:53.6]} 20... Nf6
{[%clk 0:00:57.9]} 21. Bd3 {[%clk 0:01:47.3]} 21... Rhd8 {[%clk 0:00:21.2]} 22.
Rxd8 {[%clk 0:01:34.6]} 22... Rxd8 {[%clk 0:00:23.1]} 23. Kc1 {[%clk 0:01:34.2]}
23... g5 {[%clk 0:00:19.4]} 24. Bxc2 {[%clk 0:01:34.1]} 24... Bxc2 {[%clk
0:00:20]} 25. Kxc2 {[%clk 0:01:36]} 25... gxf4 {[%clk 0:00:21.4]} 26. exf4
{[%clk 0:01:37.9]} 26... Nd5 {[%clk 0:00:14.8]} 27. Be5 {[%clk 0:01:36.5]} 27...
Rc8+ {[%clk 0:00:14.3]} 28. Kd2 {[%clk 0:01:35.5]} 28... Rc4 {[%clk 0:00:15.4]}
29. g3 {[%clk 0:01:34.1]} 29... h5 {[%clk 0:00:13]} 30. b3 {[%clk 0:01:35.4]}
30... Rc6 {[%clk 0:00:13.3]} 31. Rc1 {[%clk 0:01:34.4]} 31... Rxc1 {[%clk
0:00:12.5]} 32. Kxc1 {[%clk 0:01:36.3]} 32... Ke7 {[%clk 0:00:13.8]} 33. Kd2
{[%clk 0:01:36.9]} 33... Kd7 {[%clk 0:00:15.3]} 34. a3 {[%clk 0:01:35.4]} 34...
Kc6 {[%clk 0:00:16.4]} 35. Kd3 {[%clk 0:01:35.8]} 35... Ne7 {[%clk 0:00:14.9]}
36. f3 {[%clk 0:01:35.1]} 36... Kd5 {[%clk 0:00:16.1]} 37. h3 {[%clk 0:01:34.2]}
37... Ng6 {[%clk 0:00:17.5]} 38. Bf6 {[%clk 0:01:35]} 38... a6 {[%clk
0:00:16.8]} 39. Ke3 {[%clk 0:01:33.7]} 39... Nf8 {[%clk 0:00:09.2]} 40. g4
{[%clk 0:01:33.1]} 40... Nd7 {[%clk 0:00:08.3]} 41. Bc3 {[%clk 0:01:31.8]} 41...
fxg4 {[%clk 0:00:06]} 42. fxg4 {[%clk 0:01:33.6]} 42... hxg4 {[%clk 0:00:07.5]}
43. hxg4 {[%clk 0:01:32.9]} 43... Kd6 {[%clk 0:00:06.4]} 44. Bb4+ {[%clk
0:01:29.9]} 44... Kd5 {[%clk 0:00:06.7]} 45. g5 {[%clk 0:01:31.8]} 45... e5
{[%clk 0:00:03.6]} 46. f5 {[%clk 0:01:30.8]} 46... e4 {[%clk 0:00:05.1]} 47. g6
{[%clk 0:01:32]} 47... Nf6 {[%clk 0:00:03.2]} 48. Bc3 {[%clk 0:01:32.6]} 1-0

[Event "*** Biggest EVER Titled Tuesday"]
[Site "Chess.com"]
[Date "2018.04.17"]
[Round "8"]
[White "patzerplay"]
[Black "Slovak_fighter2000"]
[Result "1-0"]
[WhiteElo "2309"]
[BlackElo "2262"]
[TimeControl "180+2"]
[EndTime "14:52:14 PDT"]
[Termination "patzerplay won by checkmate"]

1. e4 {[%clk 0:02:59.5]} 1... e6 {[%clk 0:02:59.7]} 2. d4 {[%clk 0:03:00.3]}
2... d5 {[%clk 0:03:01.2]} 3. Nc3 {[%clk 0:03:01.4]} 3... Nf6 {[%clk 0:03:01.4]}
4. e5 {[%clk 0:03:02.6]} 4... Nfd7 {[%clk 0:03:02.2]} 5. Nce2 {[%clk 0:03:02]}
5... c5 {[%clk 0:03:03.5]} 6. c3 {[%clk 0:03:03.6]} 6... Nc6 {[%clk 0:03:04.2]}
7. f4 {[%clk 0:03:05.2]} 7... Be7 {[%clk 0:03:05.5]} 8. Nf3 {[%clk 0:03:06.7]}
8... O-O {[%clk 0:03:06.9]} 9. h4 {[%clk 0:03:07.7]} 9... f6 {[%clk 0:03:06.3]}
10. a3 {[%clk 0:03:08.6]} 10... cxd4 {[%clk 0:03:05.4]} 11. cxd4 {[%clk
0:03:06.5]} 11... fxe5 {[%clk 0:03:06.6]} 12. fxe5 {[%clk 0:03:08.4]} 12... Rxf3
{[%clk 0:03:04.6]} 13. gxf3 {[%clk 0:03:07.7]} 13... Bxh4+ {[%clk 0:03:06]} 14.
Kd2 {[%clk 0:03:07.4]} 14... Nb6 {[%clk 0:02:48.4]} 15. b3 {[%clk 0:03:02.5]}
15... Bd7 {[%clk 0:02:39.7]} 16. Bb2 {[%clk 0:03:00.3]} 16... Rc8 {[%clk
0:02:37.7]} 17. Rc1 {[%clk 0:02:59.3]} 17... Bg5+ {[%clk 0:01:50.8]} 18. f4
{[%clk 0:02:58.6]} 18... Bh6 {[%clk 0:01:52]} 19. Bh3 {[%clk 0:02:54.2]} 19...
Qf8 {[%clk 0:01:48.6]} 20. Rf1 {[%clk 0:02:18.7]} 20... Qe7 {[%clk 0:01:31.6]}
21. Rc3 {[%clk 0:02:05.6]} 21... a5 {[%clk 0:01:24.9]} 22. a4 {[%clk 0:01:54.5]}
22... Rf8 {[%clk 0:01:15.1]} 23. Qe1 {[%clk 0:01:44.7]} 23... Qb4 {[%clk
0:01:13.3]} 24. Qf2 {[%clk 0:01:44.1]} 24... Nxa4 {[%clk 0:01:05.7]} 25. bxa4
{[%clk 0:01:30.5]} 25... Qxb2+ {[%clk 0:01:07]} 26. Kd3 {[%clk 0:01:28.4]} 26...
Nb4+ {[%clk 0:01:05.2]} 27. Ke3 {[%clk 0:01:29.4]} 27... Rxf4 {[%clk 0:00:56.9]}
28. Qxf4 {[%clk 0:01:22.4]} 28... Bxf4+ {[%clk 0:00:53]} 29. Rxf4 {[%clk
0:01:24.3]} 29... g5 {[%clk 0:00:27.4]} 30. Rf6 {[%clk 0:01:17.6]} 30... Nc2+
{[%clk 0:00:28.2]} 31. Kd3 {[%clk 0:01:16]} 31... Ne1+ {[%clk 0:00:23.5]} 32.
Ke3 {[%clk 0:01:16.1]} 32... Nc2+ {[%clk 0:00:21.4]} 33. Kd3 {[%clk 0:01:16.9]}
33... Nb4+ {[%clk 0:00:22.9]} 34. Ke3 {[%clk 0:01:18.1]} 34... Qb1 {[%clk
0:00:15.3]} 35. Kf2 {[%clk 0:01:10.8]} 35... Qe4 {[%clk 0:00:12]} 36. Rcf3
{[%clk 0:00:57.4]} 36... g4 {[%clk 0:00:04.5]} 37. Rf8+ {[%clk 0:00:57.8]} 37...
Kg7 {[%clk 0:00:05.2]} 38. R3f7+ {[%clk 0:00:59.2]} 38... Kh6 {[%clk 0:00:05.2]}
39. Rf6+ {[%clk 0:00:40.9]} 39... Kg5 {[%clk 0:00:06]} 40. Rg8+ {[%clk
0:00:38.5]} 40... Kh5 {[%clk 0:00:06.4]} 41. Ng3+ {[%clk 0:00:36.6]} 41... Kh4
{[%clk 0:00:06.9]} 42. Rh6# {[%clk 0:00:37.2]} 1-0

[Event "*** Biggest EVER Titled Tuesday"]
[Site "Chess.com"]
[Date "2018.04.17"]
[Round "8"]
[White "ShimanovAlex"]
[Black "Alexander_Moskalenko"]
[Result "1/2-1/2"]
[WhiteElo "2733"]
[BlackElo "2730"]
[TimeControl "180+2"]
[EndTime "14:52:17 PDT"]
[Termination "Game drawn by repetition"]

1. c4 {[%clk 0:03:01.9]} 1... e6 {[%clk 0:03:00.4]} 2. g3 {[%clk 0:03:02.6]}
2... d5 {[%clk 0:03:01.9]} 3. Bg2 {[%clk 0:03:03.6]} 3... Nf6 {[%clk 0:03:02.7]}
4. Nf3 {[%clk 0:03:05]} 4... Be7 {[%clk 0:03:03.8]} 5. O-O {[%clk 0:03:06.2]}
5... O-O {[%clk 0:03:04.7]} 6. b3 {[%clk 0:03:07.1]} 6... b6 {[%clk 0:03:02.8]}
7. Bb2 {[%clk 0:02:57.1]} 7... Bb7 {[%clk 0:03:02.9]} 8. cxd5 {[%clk 0:02:58.6]}
8... Nxd5 {[%clk 0:03:00.3]} 9. d4 {[%clk 0:02:59.7]} 9... Nf6 {[%clk
0:02:52.8]} 10. Re1 {[%clk 0:02:58.9]} 10... Nbd7 {[%clk 0:02:52.5]} 11. Nc3
{[%clk 0:02:55.4]} 11... c5 {[%clk 0:02:48.3]} 12. e4 {[%clk 0:02:56.6]} 12...
cxd4 {[%clk 0:02:49.5]} 13. Nxd4 {[%clk 0:02:58.1]} 13... Ne5 {[%clk 0:02:44.9]}
14. Re2 {[%clk 0:02:59]} 14... Bc5 {[%clk 0:02:30.2]} 15. Rd2 {[%clk 0:02:59.8]}
15... Qe7 {[%clk 0:02:27.4]} 16. Qe2 {[%clk 0:03:00.3]} 16... Rfd8 {[%clk
0:02:24.8]} 17. Rad1 {[%clk 0:03:00.8]} 17... h6 {[%clk 0:02:16.5]} 18. h3
{[%clk 0:02:57.8]} 18... Rac8 {[%clk 0:02:13.2]} 19. Kh2 {[%clk 0:02:33.8]}
19... Bb4 {[%clk 0:01:51.2]} 20. f4 {[%clk 0:02:34.3]} 20... Bxc3 {[%clk
0:01:44.8]} 21. Bxc3 {[%clk 0:02:33.7]} 21... Rxc3 {[%clk 0:01:46.7]} 22. Nf5
{[%clk 0:02:28.2]} 22... exf5 {[%clk 0:01:42.4]} 23. Rxd8+ {[%clk 0:02:28.8]}
23... Kh7 {[%clk 0:01:42.6]} 24. fxe5 {[%clk 0:02:25.7]} 24... Qxe5 {[%clk
0:01:44.5]} 25. Qf2 {[%clk 0:02:01]} 25... Bxe4 {[%clk 0:01:38.7]} 26. Re1
{[%clk 0:01:51.4]} 26... Qc7 {[%clk 0:01:25.4]} 27. Rf8 {[%clk 0:01:26.3]} 27...
Bxg2 {[%clk 0:01:05.5]} 28. Kxg2 {[%clk 0:00:43.5]} 28... g6 {[%clk 0:01:06.7]}
29. Re3 {[%clk 0:00:28.2]} 29... Rc1 {[%clk 0:01:07.2]} 30. Kh2 {[%clk
0:00:22.7]} 30... h5 {[%clk 0:01:04.1]} 31. Re2 {[%clk 0:00:19.4]} 31... h4
{[%clk 0:01:02.6]} 32. Qf4 {[%clk 0:00:20.1]} 32... hxg3+ {[%clk 0:01:02.3]} 33.
Qxg3 {[%clk 0:00:21.2]} 33... Rh1+ {[%clk 0:01:02.7]} 34. Kxh1 {[%clk
0:00:11.6]} 34... Qxg3 {[%clk 0:01:02.6]} 35. Rxf7+ {[%clk 0:00:13.5]} 35... Kh6
{[%clk 0:01:02.7]} 36. Rxf6 {[%clk 0:00:14.7]} 36... Kh5 {[%clk 0:00:44.7]} 37.
Rg2 {[%clk 0:00:07]} 37... Qf3 {[%clk 0:00:45.1]} 38. Rxg6 {[%clk 0:00:06.8]}
38... Qxh3+ {[%clk 0:00:39.1]} 39. Kg1 {[%clk 0:00:06.7]} 39... Qe3+ {[%clk
0:00:40.5]} 40. Kh1 {[%clk 0:00:07.8]} 40... Qh3+ {[%clk 0:00:40.9]} 41. Kg1
{[%clk 0:00:08.7]} 41... Qe3+ {[%clk 0:00:42.5]} 42. Kh1 {[%clk 0:00:09.6]}
42... Qh3+ {[%clk 0:00:42.9]} 43. Kg1 {[%clk 0:00:08.1]} 43... Qe3+ {[%clk
0:00:42]} 44. Kh1 {[%clk 0:00:09]} 44... Qh3+ {[%clk 0:00:40.6]} 1/2-1/2

[Event "*** Biggest EVER Titled Tuesday"]
[Site "Chess.com"]
[Date "2018.04.17"]
[Round "8"]
[White "Kozok"]
[Black "Triumphmate"]
[Result "1-0"]
[WhiteElo "2214"]
[BlackElo "2166"]
[TimeControl "180+2"]
[EndTime "14:52:29 PDT"]
[Termination "Kozok won by checkmate"]

1. e4 {[%clk 0:03:01.9]} 1... d5 {[%clk 0:02:58.6]} 2. exd5 {[%clk 0:03:02.6]}
2... Nf6 {[%clk 0:02:44.9]} 3. d4 {[%clk 0:03:02.8]} 3... Bg4 {[%clk 0:02:42.4]}
4. Bb5+ {[%clk 0:03:03.4]} 4... c6 {[%clk 0:02:39.8]} 5. dxc6 {[%clk 0:03:04.6]}
5... Nxc6 {[%clk 0:02:39.2]} 6. f3 {[%clk 0:03:04.8]} 6... Bf5 {[%clk
0:02:32.1]} 7. c4 {[%clk 0:03:02.5]} 7... e6 {[%clk 0:02:19.8]} 8. Nc3 {[%clk
0:03:01.6]} 8... Bb4 {[%clk 0:01:40.6]} 9. Ne2 {[%clk 0:03:00.8]} 9... O-O
{[%clk 0:00:41.5]} 10. Be3 {[%clk 0:03:00]} 10... Ne7 {[%clk 0:00:16.4]} 11. O-O
{[%clk 0:02:52.5]} 11... a6 {[%clk 0:00:13.6]} 12. Ba4 {[%clk 0:02:52.8]} 12...
Rc8 {[%clk 0:00:14.3]} 13. Bb3 {[%clk 0:02:40.4]} 13... Qd7 {[%clk 0:00:11.3]}
14. a3 {[%clk 0:02:35.1]} 14... Bxc3 {[%clk 0:00:10.3]} 15. Nxc3 {[%clk
0:02:31.3]} 15... Rfd8 {[%clk 0:00:12.2]} 16. Qe2 {[%clk 0:02:11.9]} 16... Nc6
{[%clk 0:00:08.4]} 17. d5 {[%clk 0:02:13.1]} 17... Na5 {[%clk 0:00:08.9]} 18.
Ba2 {[%clk 0:02:00.9]} 18... exd5 {[%clk 0:00:08.4]} 19. cxd5 {[%clk 0:02:01]}
19... Re8 {[%clk 0:00:08.7]} 20. Qf2 {[%clk 0:01:56.8]} 20... b5 {[%clk
0:00:08.3]} 21. Rfd1 {[%clk 0:01:51.8]} 21... Nc4 {[%clk 0:00:09.1]} 22. Bd4
{[%clk 0:01:49.5]} 22... Qd6 {[%clk 0:00:04.9]} 23. Bxc4 {[%clk 0:01:22.7]}
23... Rxc4 {[%clk 0:00:05.6]} 24. Bxf6 {[%clk 0:01:06.5]} 24... Qxf6 {[%clk
0:00:07.5]} 25. d6 {[%clk 0:01:07.9]} 25... Rd8 {[%clk 0:00:08]} 26. Qb6 {[%clk
0:01:06]} 26... h5 {[%clk 0:00:06.2]} 27. Nd5 {[%clk 0:01:04.5]} 27... Qg5
{[%clk 0:00:06.1]} 28. Ne7+ {[%clk 0:01:04.4]} 28... Kh7 {[%clk 0:00:06.8]} 29.
Qxd8 {[%clk 0:01:05.3]} 29... Rc2 {[%clk 0:00:08.2]} 30. Qg8+ {[%clk 0:01:05.2]}
30... Kh6 {[%clk 0:00:09.5]} 31. Nxf5+ {[%clk 0:00:50.1]} 31... Qxf5 {[%clk
0:00:10.1]} 32. Qh8+ {[%clk 0:00:47]} 32... Kg6 {[%clk 0:00:10.7]} 33. Qe8
{[%clk 0:00:46.2]} 33... Qc5+ {[%clk 0:00:08.8]} 34. Kh1 {[%clk 0:00:45.7]}
34... Qf2 {[%clk 0:00:09.7]} 35. Qe4+ {[%clk 0:00:36.1]} 35... f5 {[%clk
0:00:10.8]} 36. Qe6+ {[%clk 0:00:35.3]} 36... Kg5 {[%clk 0:00:11.6]} 37. Rg1
{[%clk 0:00:33]} 37... Rd2 {[%clk 0:00:11.6]} 38. d7 {[%clk 0:00:31.4]} 38...
Qd4 {[%clk 0:00:08.8]} 39. Rae1 {[%clk 0:00:29.3]} 39... g6 {[%clk 0:00:08.9]}
40. Qe7+ {[%clk 0:00:29.4]} 40... Kf4 {[%clk 0:00:09.2]} 41. Qh4# {[%clk
0:00:30]} 1-0

[Event "*** Biggest EVER Titled Tuesday"]
[Site "Chess.com"]
[Date "2018.04.17"]
[Round "8"]
[White "vuqaresedli"]
[Black "kirillshevchenko"]
[Result "0-1"]
[WhiteElo "2340"]
[BlackElo "2355"]
[TimeControl "180+2"]
[EndTime "14:52:43 PDT"]
[Termination "kirillshevchenko won by resignation"]

1. Nf3 {[%clk 0:03:01.9]} 1... Nf6 {[%clk 0:02:58.9]} 2. g3 {[%clk 0:03:02.6]}
2... g6 {[%clk 0:03:00.1]} 3. b3 {[%clk 0:03:03.1]} 3... Bg7 {[%clk 0:03:00]} 4.
Bb2 {[%clk 0:03:04.2]} 4... d6 {[%clk 0:02:54.7]} 5. d4 {[%clk 0:03:04.6]} 5...
O-O {[%clk 0:02:45.4]} 6. Bg2 {[%clk 0:03:05.4]} 6... c5 {[%clk 0:02:45.9]} 7.
c4 {[%clk 0:03:05.4]} 7... Ne4 {[%clk 0:02:45.9]} 8. O-O {[%clk 0:03:01.7]} 8...
Nc6 {[%clk 0:02:46.2]} 9. Nbd2 {[%clk 0:02:50.2]} 9... Bf5 {[%clk 0:02:45.2]}
10. e3 {[%clk 0:02:49.8]} 10... cxd4 {[%clk 0:02:15.5]} 11. Nxd4 {[%clk
0:02:44.6]} 11... Nxd4 {[%clk 0:02:06.9]} 12. exd4 {[%clk 0:02:42.4]} 12... Nxd2
{[%clk 0:01:45.9]} 13. Qxd2 {[%clk 0:02:43.2]} 13... Qc7 {[%clk 0:01:40.2]} 14.
Rfe1 {[%clk 0:02:43.3]} 14... e5 {[%clk 0:01:34.1]} 15. Rad1 {[%clk 0:02:42.2]}
15... Bg4 {[%clk 0:01:29.1]} 16. f3 {[%clk 0:02:39.2]} 16... Bf5 {[%clk
0:01:21]} 17. f4 {[%clk 0:02:40.2]} 17... exf4 {[%clk 0:00:57.1]} 18. Qxf4
{[%clk 0:02:39.2]} 18... Rfe8 {[%clk 0:00:57.7]} 19. g4 {[%clk 0:02:36]} 19...
Be6 {[%clk 0:00:50.9]} 20. h3 {[%clk 0:02:29.9]} 20... Rad8 {[%clk 0:00:47.2]}
21. Kh1 {[%clk 0:02:24.7]} 21... Qa5 {[%clk 0:00:44.3]} 22. Qd2 {[%clk
0:02:10.3]} 22... Qxa2 {[%clk 0:00:35.5]} 23. Qc2 {[%clk 0:01:48.1]} 23... Qa6
{[%clk 0:00:30.4]} 24. d5 {[%clk 0:01:48.8]} 24... Bc8 {[%clk 0:00:20.9]} 25.
Bxg7 {[%clk 0:01:48.8]} 25... Kxg7 {[%clk 0:00:22.8]} 26. Qb2+ {[%clk
0:01:49.9]} 26... Kg8 {[%clk 0:00:23.8]} 27. Qf6 {[%clk 0:01:48.7]} 27... Qb6
{[%clk 0:00:22.2]} 28. Rf1 {[%clk 0:01:38.4]} 28... Qc7 {[%clk 0:00:22.2]} 29.
b4 {[%clk 0:01:35.7]} 29... b6 {[%clk 0:00:20.3]} 30. c5 {[%clk 0:01:32.1]}
30... bxc5 {[%clk 0:00:10.7]} 31. bxc5 {[%clk 0:01:32.2]} 31... dxc5 {[%clk
0:00:11.6]} 32. d6 {[%clk 0:01:32.6]} 32... Qd7 {[%clk 0:00:13]} 33. Kh2 {[%clk
0:01:31.6]} 33... Bb7 {[%clk 0:00:08.7]} 34. Bxb7 {[%clk 0:01:27.3]} 34... Qxb7
{[%clk 0:00:10.6]} 35. Rd2 {[%clk 0:01:27.1]} 35... Qd7 {[%clk 0:00:09.4]} 36.
Kg3 {[%clk 0:01:20.9]} 36... Re6 {[%clk 0:00:10.2]} 37. Qf4 {[%clk 0:01:20.1]}
37... Rxd6 {[%clk 0:00:11]} 38. Rdf2 {[%clk 0:01:19.3]} 38... Rd3+ {[%clk
0:00:07.5]} 39. Kh2 {[%clk 0:01:18.4]} 39... Qd6 {[%clk 0:00:02.7]} 40. Qxd6
{[%clk 0:01:18.8]} 40... R3xd6 {[%clk 0:00:04.6]} 41. Rxf7 {[%clk 0:01:20.3]}
41... R6d7 {[%clk 0:00:06.2]} 42. R7f6 {[%clk 0:01:20.3]} 42... Rc7 {[%clk
0:00:07]} 43. Ra6 {[%clk 0:01:19.3]} 43... c4 {[%clk 0:00:05.7]} 44. Rfa1 {[%clk
0:01:20.2]} 44... Rdc8 {[%clk 0:00:03.9]} 45. Rxa7 {[%clk 0:01:19.2]} 45... Rxa7
{[%clk 0:00:05.8]} 46. Rxa7 {[%clk 0:01:20.3]} 46... c3 {[%clk 0:00:07.7]} 47.
Ra1 {[%clk 0:01:21.3]} 47... Kf7 {[%clk 0:00:08.2]} 48. Rc1 {[%clk 0:01:21]}
48... c2 {[%clk 0:00:09.5]} 49. Kg3 {[%clk 0:01:22.2]} 49... Kf6 {[%clk
0:00:10.4]} 50. Kf4 {[%clk 0:01:23.2]} 50... Rc4+ {[%clk 0:00:11.1]} 51. Ke3
{[%clk 0:01:23.3]} 51... Kg5 {[%clk 0:00:12.6]} 52. Kd3 {[%clk 0:01:22.7]} 52...
Rc8 {[%clk 0:00:14.2]} 53. Kd2 {[%clk 0:01:22.6]} 53... Kh4 {[%clk 0:00:14.9]}
54. Ke3 {[%clk 0:01:23.9]} 54... Kxh3 {[%clk 0:00:14.9]} 55. Kf4 {[%clk
0:01:25.2]} 55... Kg2 {[%clk 0:00:14.9]} 56. Kg5 {[%clk 0:01:26.3]} 56... Kf3
{[%clk 0:00:15.6]} 57. Kh4 {[%clk 0:01:23]} 57... Rc4 {[%clk 0:00:15.7]} 58. Kg5
{[%clk 0:01:24]} 58... Rxg4+ {[%clk 0:00:16.5]} 59. Kf6 {[%clk 0:01:25.6]} 59...
Rc4 {[%clk 0:00:17.5]} 60. Kg7 {[%clk 0:01:26.6]} 60... Ke2 {[%clk 0:00:18.7]}
0-1